fUST/lending_fUST_20250104
["ID","MTS","AMOUNT","RATE_DAILY","PERIOD"]
[347581619,1735924251456,-500.0,0.00020547,3]
[347581620,1735924251465,-500.0,0.00020547,3]
[347581621,1735924251475,-1037.83,0.00020547,3]
[347581622,1735924251484,-500.0,0.00020547,3]
[347581623,1735924251495,-2742.66,0.00020547,3]
[347581624,1735924251504,-500.0,0.00020547,3]
[347581625,1735924251515,-607.65,0.00020547,3]
[347581626,1735924251525,-500.0,0.00020547,2]
[347581627,1735924251534,-500.0,0.00020547,3]
[347581628,1735924251543,-500.0,0.00020547,3]
[347581629,1735924251553,-376.69601759,0.00020547,3]
[347581630,1735924251564,-505.15572488,0.00020547,3]
[347581631,1735924251573,-1185.66,0.00020547,3]
[347581632,1735924251583,-500.0,0.00020547,3]
[347581633,1735924251596,-500.0,0.00020547,3]
[347581634,1735924251606,-959.66,0.00020547,3]
[347581635,1735924251615,-500.0,0.00020547,3]
[347581636,1735924251628,-500.0,0.00020547,3]
[347581637,1735924251637,-500.0,0.00020547,3]
[347581638,1735924251647,-500.0,0.00020547,3]
[347581639,1735924251657,-961.58,0.00020547,3]
[347581640,1735924251666,-500.0,0.00020547,3]
[347581641,1735924251676,-372.14802043,0.00020547,3]
[347581642,1735924251686,-500.0,0.00020547,3]
[347581643,1735924251696,-4013.46,0.00020547,3]
[347581644,1735924251705,-500.0,0.00020547,3]
[347581645,1735924251714,-500.0,0.00020547,3]
[347581646,1735924251724,-994.81,0.00020547,3]
[347581647,1735924251733,-500.0,0.00020547,3]
[347581648,1735924251742,-818.27,0.00020547,3]
[347581649,1735924251751,-500.0,0.00020547,3]
[347581650,1735924251761,-544.85,0.00020547,3]
[347581651,1735924251771,-500.0,0.00020547,3]
[347581652,1735924251780,-500.0,0.00020547,3]
[347581653,1735924251789,-500.0,0.00020547,3]
[347581654,1735924251798,-500.0,0.00020547,3]
[347581655,1735924251807,-728.95,0.00020547,3]
[347581656,1735924251817,-500.0,0.00020547,3]
[347581657,1735924251826,-500.0,0.00020547,3]
[347581658,1735924251837,-609.31,0.00020547,3]
[347581659,1735924251846,-500.0,0.00020547,3]
[347581660,1735924251856,-500.0,0.00020547,3]
[347581661,1735924251865,-500.0,0.00020547,3]
[347581662,1735924251877,-2229.74,0.00020547,3]
[347581663,1735924251886,-500.0,0.00020547,3]
[347581664,1735924251896,-816.77,0.00020547,3]
[347581665,1735924251905,-1341.5,0.00020547,3]
[347581666,1735924251914,-500.0,0.00020547,3]
[347581667,1735924251924,-381.74492361,0.00020547,3]
[347581668,1735924251933,-505.6082234,0.00020547,3]
[347581669,1735924251942,-1055.67,0.00020547,3]
[347581670,1735924251952,-500.0,0.00020547,3]
[347581671,1735924251962,-504.69611081,0.00020547,3]
[347581672,1735924251971,-500.0,0.00020547,3]
[347581673,1735924251981,-500.0,0.00020547,3]
[347581674,1735924251990,-500.0,0.00020547,3]
[347581675,1735924251999,-500.0,0.00020547,3]
[347581676,1735924252009,-500.0,0.00020547,3]
[347581677,1735924252018,-1082.29,0.00020547,3]
[347581678,1735924252028,-519.2,0.00020547,3]
[347581679,1735924252037,-35051.82,0.00020547,3]
[347581680,1735924252047,-511.78,0.00020547,3]
[347581681,1735924252057,-500.0,0.00020547,3]
[347581682,1735924252066,-2754.83,0.00020547,3]
[347581683,1735924252076,-2325.63,0.00020547,3]
[347581684,1735924252084,-526.77,0.00020547,3]
[347581685,1735924252095,-943.71,0.00020547,3]
[347581686,1735924252104,-500.0,0.00020547,3]
[347581687,1735924252114,-500.0,0.00020547,3]
[347581688,1735924252125,-521.93,0.00020547,3]
[347581689,1735924252135,-500.0,0.00020547,3]
[347581690,1735924252145,-1215.82,0.00020547,3]
[347581691,1735924252155,-3168.56,0.00020547,3]
[347581692,1735924252164,-500.0,0.00020547,3]
[347581693,1735924252174,-500.0,0.00020547,3]
[347581694,1735924252184,-500.0,0.00020547,3]
[347581695,1735924252193,-500.0,0.00020547,3]
[347581696,1735924252203,-500.0,0.00020547,3]
[347581697,1735924252213,-500.0,0.00020547,3]
[347581698,1735924252223,-577.23,0.00020547,3]
[347581699,1735924252232,-500.0,0.00020547,3]
[347581700,1735924252242,-1040.34,0.00020547,3]
[347581701,1735924252252,-500.0,0.00020547,3]
[347581702,1735924252262,-500.0,0.00020547,3]
[347581703,1735924252273,-500.0,0.00020547,3]
[347581704,1735924252283,-500.0,0.00020547,3]
[347581705,1735924252293,-1302.98,0.00020547,3]
[347581706,1735924252303,-500.0,0.00020547,3]
[347581707,1735924252312,-500.0,0.00020547,3]
[347581708,1735924252322,-500.0,0.00020547,3]
[347581709,1735924252331,-1351.62,0.00020547,3]
[347581710,1735924252341,-500.0,0.00020547,3]
[347581711,1735924252350,-1051.97,0.00020547,3]
[347581712,1735924252360,-1167.27,0.00020547,3]
[347581713,1735924252369,-500.0,0.00020547,2]
[347581714,1735924252381,-500.0,0.00020547,3]
[347581715,1735924252390,-500.0,0.00020547,3]
[347581716,1735924252400,-500.0,0.00020547,3]
[347581717,1735924252410,-537.08,0.00020547,3]
[347581718,1735924252420,-500.0,0.00020547,3]
[347581719,1735924252429,-5069.54,0.00020547,3]
[347581720,1735924252438,-500.0,0.00020547,3]
[347581721,1735924252448,-500.0,0.00020547,3]
[347581722,1735924252458,-7535.86,0.00020547,3]
[347581723,1735924252467,-189.3651438,0.00020624,2]
[347581724,1735924252477,-189.3651438,0.00020728,2]
[347581725,1735924252486,-515.0,0.000208,9]
[347581726,1735924252495,-151.0,0.000208,3]
[347581727,1735924252506,-2161.1286651,0.00020811,2]
[347581728,1735924252519,-500.0,0.00020821,3]
[347581729,1735924252528,-602.29,0.00020821,3]
[347581730,1735924252538,-500.0,0.00020821,3]
[347581731,1735924252547,-500.0,0.00020821,3]
[347581732,1735924252556,-500.0,0.00020821,3]
[347581733,1735924252566,-236.0613393,0.00020821,3]
[347581734,1735924252575,-500.0,0.00020821,3]
[347581735,1735924252586,-500.0,0.00020821,3]
[347581736,1735924252596,-500.0,0.00020821,3]
[347581737,1735924252606,-500.0,0.00020821,3]
[347581738,1735924252615,-500.0,0.00020821,3]
[347581739,1735924252625,-500.0,0.00020821,3]
[347581740,1735924252634,-1037.83,0.00020821,3]
[347581741,1735924252644,-500.0,0.00020821,3]
[347581742,1735924252654,-2742.66,0.00020821,3]
[347581743,1735924252663,-500.0,0.00020821,3]
[347581744,1735924252673,-607.65,0.00020821,3]
[347581745,1735924252682,-500.0,0.00020821,2]
[347581746,1735924252692,-500.0,0.00020821,3]
[347581747,1735924252701,-500.0,0.00020821,3]
[347581748,1735924252710,-1185.66,0.00020821,3]
[347581749,1735924252721,-500.0,0.00020821,3]
[347581750,1735924252730,-959.66,0.00020821,3]
[347581751,1735924252740,-500.0,0.00020821,3]
[347581752,1735924252749,-500.0,0.00020821,3]
[347581753,1735924252759,-508.31435351,0.00020821,3]
[347581754,1735924252769,-500.0,0.00020821,3]
[347581755,1735924252779,-961.58,0.00020821,3]
[347581756,1735924252788,-500.0,0.00020821,3]
[347581757,1735924252797,-500.0,0.00020821,3]
[347581758,1735924252807,-4013.46,0.00020821,3]
[347581759,1735924252817,-375.30804421,0.00020821,3]
[347581760,1735924252827,-500.0,0.00020821,3]
[347581761,1735924252837,-994.81,0.00020821,3]
[347581762,1735924252846,-500.0,0.00020821,3]
[347581763,1735924252856,-818.27,0.00020821,3]
[347581764,1735924252866,-500.0,0.00020821,3]
[347581765,1735924252878,-544.85,0.00020821,3]
[347581766,1735924252887,-500.0,0.00020821,3]
[347581767,1735924252897,-500.0,0.00020821,3]
[347581768,1735924252907,-500.0,0.00020821,3]
[347581769,1735924252917,-500.0,0.00020821,3]
[347581770,1735924252926,-728.95,0.00020821,3]
[347581771,1735924252936,-500.0,0.00020821,3]
[347581772,1735924252945,-609.31,0.00020821,3]
[347581773,1735924252955,-500.0,0.00020821,3]
[347581774,1735924252964,-500.0,0.00020821,3]
[347581775,1735924252975,-500.0,0.00020821,3]
[347581776,1735924252984,-500.0,0.00020821,3]
[347581777,1735924252995,-2229.74,0.00020821,3]
[347581778,1735924253005,-500.0,0.00020821,3]
[347581779,1735924253015,-816.77,0.00020821,3]
[347581780,1735924253024,-1341.5,0.00020821,3]
[347581781,1735924253034,-500.0,0.00020821,3]
[347581782,1735924253044,-1055.67,0.00020821,3]
[347581783,1735924253053,-505.31782053,0.00020821,3]
[347581784,1735924253063,-500.0,0.00020821,3]
[347581785,1735924253072,-500.0,0.00020821,3]
[347581786,1735924253082,-500.0,0.00020821,3]
[347581787,1735924253092,-500.0,0.00020821,3]
[347581788,1735924253101,-505.31244333,0.00020821,3]
[347581789,1735924253111,-1082.29,0.00020821,3]
[347581790,1735924253121,-35051.82,0.00020821,3]
[347581791,1735924253132,-511.78,0.00020821,3]
[347581792,1735924253141,-500.0,0.00020821,3]
[347581793,1735924253151,-2754.83,0.00020821,3]
[347581794,1735924253160,-2325.63,0.00020821,3]
[347581795,1735924253170,-526.77,0.00020821,3]
[347581796,1735924253180,-943.71,0.00020821,3]
[347581797,1735924253189,-500.0,0.00020821,3]
[347581798,1735924253198,-224.61220669,0.00020821,3]
[347581799,1735924253208,-521.93,0.00020821,3]
[347581800,1735924253217,-500.0,0.00020821,3]
[347581801,1735924253227,-1215.82,0.00020821,3]
[347581802,1735924253236,-3168.56,0.00020821,3]
[347581803,1735924253246,-500.0,0.00020821,3]
[347581804,1735924253255,-500.0,0.00020821,3]
[347581805,1735924253265,-500.0,0.00020821,3]
[347581806,1735924253275,-500.0,0.00020821,3]
[347581807,1735924253285,-577.23,0.00020821,3]
[347581808,1735924253295,-500.0,0.00020821,3]
[347581809,1735924253305,-1040.34,0.00020821,3]
[347581810,1735924253315,-500.0,0.00020821,3]
[347581811,1735924253325,-500.0,0.00020821,3]
[347581812,1735924253334,-505.03023111,0.00020821,3]
[347581813,1735924253344,-500.0,0.00020821,3]
[347581814,1735924253354,-1302.98,0.00020821,3]
[347581815,1735924253364,-500.0,0.00020821,3]
[347581816,1735924253373,-500.0,0.00020821,3]
[347581817,1735924253384,-1351.62,0.00020821,3]
[347581818,1735924253394,-500.0,0.00020821,3]
[347581819,1735924253403,-1051.97,0.00020821,3]
[347581820,1735924253413,-1167.27,0.00020821,3]
[347581821,1735924253422,-500.0,0.00020821,2]
[347581822,1735924253433,-500.0,0.00020821,3]
[347581823,1735924253444,-500.0,0.00020821,3]
[347581824,1735924253454,-500.0,0.00020821,3]
[347581825,1735924253463,-537.08,0.00020821,3]
[347581826,1735924253473,-500.0,0.00020821,3]
[347581827,1735924253483,-5069.54,0.00020821,3]
[347581828,1735924253492,-500.0,0.00020821,3]
[347581829,1735924253502,-500.0,0.00020821,3]
[347581830,1735924253516,-7535.86,0.00020821,3]
[347581831,1735924253526,-189.3651438,0.00020831,2]
[347581832,1735924253537,-420.0,0.00020898,2]
[347581833,1735924253548,-500.0,0.00020905,2]
[347581834,1735924253560,-189.3651438,0.00020934,2]
[347581835,1735924253570,-500.0,0.00020945,2]
[347581836,1735924253580,-500.0,0.00020945,2]
[347581837,1735924253592,-500.0,0.00020945,2]
[347581838,1735924253602,-500.0,0.00020945,2]
[347581839,1735924253612,-422.15020785,0.00020945,2]
[347581840,1735924253622,-500.0,0.00020945,2]
[347581841,1735924253634,-500.0,0.00020945,2]
[347581842,1735924253644,-150.0,0.00021,2]
[347581843,1735924253653,-189.3651438,0.00021038,2]
[347581844,1735924253663,-500.0,0.0002106,2]
[347581845,1735924253674,-500.0,0.00021095,3]
[347581846,1735924253684,-602.29,0.00021095,3]
[347581847,1735924253693,-500.0,0.00021095,3]
[347581848,1735924253703,-500.0,0.00021095,3]
[347581849,1735924253713,-500.0,0.00021095,3]
[347581850,1735924253722,-500.0,0.00021095,3]
[347581851,1735924253732,-500.0,0.00021095,3]
[347581852,1735924253741,-500.0,0.00021095,3]
[347581853,1735924253751,-500.0,0.00021095,3]
[347581854,1735924253761,-500.0,0.00021095,3]
[347581855,1735924253771,-500.0,0.00021095,3]
[347581856,1735924253780,-500.0,0.00021095,3]
[347581857,1735924253894,-1037.83,0.00021095,3]
[347581858,1735924253905,-2742.66,0.00021095,3]
[347581859,1735924253914,-500.0,0.00021095,3]
[347581860,1735924253924,-607.65,0.00021095,3]
[347581861,1735924253934,-500.0,0.00021095,2]
[347581862,1735924253944,-500.0,0.00021095,3]
[347581863,1735924253954,-500.0,0.00021095,3]
[347581864,1735924253963,-1185.66,0.00021095,3]
[347581865,1735924253973,-500.0,0.00021095,3]
[347581866,1735924253983,-959.66,0.00021095,3]
[347581867,1735924253994,-500.0,0.00021095,3]
[347581868,1735924254003,-500.0,0.00021095,3]
[347581869,1735924254013,-500.0,0.00021095,3]
[347581870,1735924254023,-961.58,0.00021095,3]
[347581871,1735924254033,-506.39599227,0.00021095,3]
[347581872,1735924254043,-442.86643342,0.00021095,3]
[347581873,1735924254054,-4013.46,0.00021095,3]
[347581874,1735924254064,-500.0,0.00021095,3]
[347581875,1735924254074,-994.81,0.00021095,3]
[347581876,1735924254084,-818.27,0.00021095,3]
[347581877,1735924254093,-500.0,0.00021095,3]
[347581878,1735924254103,-544.85,0.00021095,3]
[347581879,1735924254113,-500.0,0.00021095,3]
[347581880,1735924254123,-500.0,0.00021095,3]
[347581881,1735924254134,-500.0,0.00021095,3]
[347581882,1735924254144,-500.0,0.00021095,3]
[347581883,1735924254153,-728.95,0.00021095,3]
[347581884,1735924254164,-500.0,0.00021095,3]
[347581885,1735924254174,-609.31,0.00021095,3]
[347581886,1735924254183,-500.0,0.00021095,3]
[347581887,1735924254194,-500.0,0.00021095,3]
[347581888,1735924254203,-500.0,0.00021095,3]
[347581889,1735924254214,-2229.74,0.00021095,3]
[347581890,1735924254224,-500.0,0.00021095,3]
[347581891,1735924254234,-500.0,0.00021095,3]
[347581892,1735924254245,-816.77,0.00021095,3]
[347581893,1735924254254,-1341.5,0.00021095,3]
[347581894,1735924254264,-500.0,0.00021095,3]
[347581895,1735924254274,-1055.67,0.00021095,3]
[347581896,1735924254284,-500.0,0.00021095,3]
[347581897,1735924254294,-500.0,0.00021095,3]
[347581898,1735924254303,-500.0,0.00021095,3]
[347581899,1735924254314,-500.0,0.00021095,3]
[347581900,1735924254325,-1082.29,0.00021095,3]
[347581901,1735924254335,-35051.82,0.00021095,3]
[347581902,1735924254344,-511.78,0.00021095,3]
[347581903,1735924254354,-500.0,0.00021095,3]
[347581904,1735924254363,-2754.83,0.00021095,3]
[347581905,1735924254373,-2325.63,0.00021095,3]
[347581906,1735924254384,-526.77,0.00021095,3]
[347581907,1735924254394,-943.71,0.00021095,3]
[347581908,1735924254403,-500.0,0.00021095,3]
[347581909,1735924254413,-521.93,0.00021095,3]
[347581910,1735924254422,-500.0,0.00021095,3]
[347581911,1735924254432,-1215.82,0.00021095,3]
[347581912,1735924254443,-500.0,0.00021095,3]
[347581913,1735924254452,-3168.56,0.00021095,3]
[347581914,1735924254462,-500.0,0.00021095,3]
[347581915,1735924254472,-500.0,0.00021095,3]
[347581916,1735924254482,-500.0,0.00021095,3]
[347581917,1735924254494,-577.23,0.00021095,3]
[347581918,1735924254504,-500.0,0.00021095,3]
[347581919,1735924254518,-1040.34,0.00021095,3]
[347581920,1735924254528,-466.54,0.00021095,3]
[347581921,1735924254538,-500.0,0.00021095,3]
[347581922,1735924254548,-500.0,0.00021095,3]
[347581923,1735924254561,-1302.98,0.00021095,3]
[347581924,1735924254572,-500.0,0.00021095,3]
[347581925,1735924254582,-500.0,0.00021095,3]
[347581926,1735924254595,-1351.62,0.00021095,3]
[347581927,1735924254607,-500.0,0.00021095,3]
[347581928,1735924254629,-1051.97,0.00021095,3]
[347581929,1735924254639,-1167.27,0.00021095,3]
[347581930,1735924254648,-500.0,0.00021095,2]
[347581931,1735924254659,-510.88,0.00021095,3]
[347581932,1735924254669,-500.0,0.00021095,3]
[347581933,1735924254678,-500.0,0.00021095,3]
[347581934,1735924254688,-537.08,0.00021095,3]
[347581935,1735924254698,-5069.54,0.00021095,3]
[347581936,1735924254708,-500.0,0.00021095,3]
[347581937,1735924254718,-500.0,0.00021095,3]
[347581938,1735924254728,-7535.86,0.00021095,3]
[347581939,1735924254738,-151.0,0.000211,3]
[347581940,1735924254748,-2140.65826474,0.00021122,2]
[347581941,1735924254758,-189.3651438,0.00021141,2]
[347581942,1735924254767,-154.04,0.00021178,2]
[347581943,1735924254776,-189.3651438,0.00021245,2]
[347581944,1735924254786,-484.9549021,0.00021277,2]
[347581945,1735924254797,-7629.39926258,0.0002133,2]
[347581946,1735924254807,-5000.0,0.0002133,2]
[347581947,1735924254816,-189.3651438,0.00021348,2]
[347581948,1735924254826,-500.0,0.00021369,3]
[347581949,1735924254835,-602.29,0.00021369,3]
[347581950,1735924254845,-500.0,0.00021369,3]
[347581951,1735924254854,-500.0,0.00021369,3]
[347581952,1735924254864,-500.0,0.00021369,3]
[347581953,1735924254873,-500.0,0.00021369,3]
[347581954,1735924254884,-500.0,0.00021369,3]
[347581955,1735924254894,-500.0,0.00021369,3]
[347581956,1735924254904,-500.0,0.00021369,3]
[347581957,1735924254913,-500.0,0.00021369,3]
[347581958,1735924254923,-500.0,0.00021369,3]
[347581959,1735924254932,-500.0,0.00021369,3]
[347581960,1735924254941,-1037.83,0.00021369,3]
[347581961,1735924254951,-2742.66,0.00021369,3]
[347581962,1735924254960,-490.49398917,0.00021369,3]
[347581963,1735924254970,-607.65,0.00021369,3]
[347581964,1735924254979,-500.0,0.00021369,2]
[347581965,1735924254989,-500.0,0.00021369,3]
[347581966,1735924254998,-500.0,0.00021369,3]
[347581967,1735924255008,-1185.66,0.00021369,3]
[347581968,1735924255019,-254.33965385,0.00021369,3]
[347581969,1735924255029,-959.66,0.00021369,3]
[347581970,1735924255039,-500.0,0.00021369,3]
[347581971,1735924255049,-500.0,0.00021369,3]
[347581972,1735924255059,-500.0,0.00021369,3]
[347581973,1735924255069,-961.58,0.00021369,3]
[347581974,1735924255079,-4013.46,0.00021369,3]
[347581975,1735924255089,-500.0,0.00021369,3]
[347581976,1735924255098,-994.81,0.00021369,3]
[347581977,1735924255108,-818.27,0.00021369,3]
[347581978,1735924255118,-500.0,0.00021369,3]
[347581979,1735924255128,-544.85,0.00021369,3]
[347581980,1735924255138,-610.16362687,0.00021369,3]
[347581981,1735924255147,-500.0,0.00021369,3]
[347581982,1735924255157,-500.0,0.00021369,3]
[347581983,1735924255167,-500.0,0.00021369,3]
[347581984,1735924255177,-728.95,0.00021369,3]
[347581985,1735924255187,-500.0,0.00021369,3]
[347581986,1735924255197,-609.31,0.00021369,3]
[347581987,1735924255207,-553.7,0.00021369,3]
[347581988,1735924255216,-500.0,0.00021369,3]
[347581989,1735924255226,-500.0,0.00021369,3]
[347581990,1735924255235,-2229.74,0.00021369,3]
[347581991,1735924255246,-500.0,0.00021369,3]
[347581992,1735924255256,-500.0,0.00021369,3]
[347581993,1735924255266,-816.77,0.00021369,3]
[347581994,1735924255275,-1341.5,0.00021369,3]
[347581995,1735924255285,-500.0,0.00021369,3]
[347581996,1735924255294,-1055.67,0.00021369,3]
[347581997,1735924255303,-500.0,0.00021369,3]
[347581998,1735924255312,-500.0,0.00021369,3]
[347581999,1735924255322,-500.0,0.00021369,3]
[347582000,1735924255332,-500.0,0.00021369,3]
[347582001,1735924255341,-1082.29,0.00021369,3]
[347582002,1735924255351,-35051.82,0.00021369,3]
[347582003,1735924255360,-511.78,0.00021369,3]
[347582004,1735924255369,-500.0,0.00021369,3]
[347582005,1735924255379,-2754.83,0.00021369,3]
[347582006,1735924255389,-2325.63,0.00021369,3]
[347582007,1735924255398,-526.77,0.00021369,3]
[347582008,1735924255409,-943.71,0.00021369,3]
[347582009,1735924255419,-500.0,0.00021369,3]
[347582010,1735924255428,-521.93,0.00021369,3]
[347582011,1735924255440,-500.0,0.00021369,3]
[347582012,1735924255451,-1215.82,0.00021369,3]
[347582013,1735924255460,-572.92,0.00021369,3]
[347582014,1735924255470,-3168.56,0.00021369,3]
[347582015,1735924255479,-462.78374545,0.00021369,3]
[347582016,1735924255489,-500.0,0.00021369,3]
[347582017,1735924255498,-500.0,0.00021369,3]
[347582018,1735924255511,-577.23,0.00021369,3]
[347582019,1735924255520,-500.0,0.00021369,3]
[347582020,1735924255530,-1040.34,0.00021369,3]
[347582021,1735924255539,-500.0,0.00021369,3]
[347582022,1735924255550,-500.0,0.00021369,3]
[347582023,1735924255560,-1302.98,0.00021369,3]
[347582024,1735924255569,-500.0,0.00021369,3]
[347582025,1735924255579,-500.0,0.00021369,3]
[347582026,1735924255589,-1351.62,0.00021369,3]
[347582027,1735924255599,-551.78031512,0.00021369,3]
[347582028,1735924255608,-1051.97,0.00021369,3]
[347582029,1735924255619,-1167.27,0.00021369,3]
[347582030,1735924255629,-500.0,0.00021369,3]
[347582031,1735924255639,-500.0,0.00021369,2]
[347582032,1735924255649,-500.0,0.00021369,3]
[347582033,1735924255658,-537.08,0.00021369,3]
[347582034,1735924255668,-5069.54,0.00021369,3]
[347582035,1735924255678,-500.0,0.00021369,3]
[347582036,1735924255688,-500.0,0.00021369,3]
[347582037,1735924255699,-7535.86,0.00021369,3]
[347582038,1735924255708,-216.0,0.0002144,5]
[347582039,1735924255718,-189.3651438,0.00021452,2]
[347582040,1735924255728,-1000.0,0.00021493,2]
[347582041,1735924255738,-1006.50432873,0.00021493,2]
[347582042,1735924255748,-776.5542641,0.00021493,2]
[347582043,1735924255758,-1000.0,0.00021493,2]
[347582044,1735924255767,-257.40155766,0.00021493,2]
[347582045,1735924255778,-1000.0,0.00021493,2]
[347582046,1735924255787,-151.0,0.000215,3]
[347582047,1735924255798,-8413.22,0.000215,2]
[347582048,1735924255808,-2406.38,0.000215,2]
[347582049,1735924255817,-10053.08,0.000215,2]
[347582050,1735924255827,-189.3651438,0.00021555,2]
[347582051,1735924255836,-491.798,0.0002157,2]
[347582052,1735924255846,-2000.0,0.000216,2]
[347582053,1735924255856,-5692.0,0.000216,4]
[347582054,1735924255866,-2000.0,0.000216,2]
[347582055,1735924255878,-500.0,0.00021643,3]
[347582056,1735924255887,-602.29,0.00021643,3]
[347582057,1735924255897,-500.0,0.00021643,3]
[347582058,1735924255908,-500.0,0.00021643,3]
[347582059,1735924255917,-500.0,0.00021643,3]
[347582060,1735924255926,-500.0,0.00021643,3]
[347582061,1735924255936,-500.0,0.00021643,3]
[347582062,1735924255945,-198.88956689,0.00021643,3]
[347582063,1735924255954,-500.0,0.00021643,3]
[347582064,1735924255964,-500.0,0.00021643,3]
[347582065,1735924255974,-500.0,0.00021643,3]
[347582066,1735924255983,-500.0,0.00021643,3]
[347582067,1735924255993,-1037.83,0.00021643,3]
[347582068,1735924256004,-2742.66,0.00021643,3]
[347582069,1735924256013,-607.65,0.00021643,3]
[347582070,1735924256022,-500.0,0.00021643,2]
[347582071,1735924256032,-500.0,0.00021643,3]
[347582072,1735924256041,-1185.66,0.00021643,3]
[347582073,1735924256051,-959.66,0.00021643,3]
[347582074,1735924256060,-500.0,0.00021643,3]
[347582075,1735924256070,-500.0,0.00021643,3]
[347582076,1735924256080,-500.0,0.00021643,3]
[347582077,1735924256089,-961.58,0.00021643,3]
[347582078,1735924256099,-4013.46,0.00021643,3]
[347582079,1735924256214,-994.81,0.00021643,3]
[347582080,1735924256225,-818.27,0.00021643,3]
[347582081,1735924256235,-329.61462002,0.00021643,3]
[347582082,1735924256245,-544.85,0.00021643,3]
[347582083,1735924256255,-500.0,0.00021643,3]
[347582084,1735924256265,-500.0,0.00021643,3]
[347582085,1735924256275,-500.0,0.00021643,3]
[347582086,1735924256285,-728.95,0.00021643,3]
[347582087,1735924256295,-500.0,0.00021643,3]
[347582088,1735924256305,-609.31,0.00021643,3]
[347582089,1735924256315,-500.0,0.00021643,3]
[347582090,1735924256326,-500.0,0.00021643,3]
[347582091,1735924256336,-2229.74,0.00021643,3]
[347582092,1735924256346,-500.0,0.00021643,3]
[347582093,1735924256356,-816.77,0.00021643,3]
[347582094,1735924256367,-1341.5,0.00021643,3]
[347582095,1735924256378,-500.0,0.00021643,3]
[347582096,1735924256388,-500.0,0.00021643,3]
[347582097,1735924256399,-1055.67,0.00021643,3]
[347582098,1735924256409,-500.0,0.00021643,3]
[347582099,1735924256418,-500.0,0.00021643,3]
[347582100,1735924256428,-500.0,0.00021643,3]
[347582101,1735924256438,-500.0,0.00021643,3]
[347582102,1735924256448,-1082.29,0.00021643,3]
[347582103,1735924256458,-35051.82,0.00021643,3]
[347582104,1735924256467,-511.78,0.00021643,3]
[347582105,1735924256478,-500.0,0.00021643,3]
[347582106,1735924256488,-2754.83,0.00021643,3]
[347582107,1735924256499,-2325.63,0.00021643,3]
[347582108,1735924256511,-526.77,0.00021643,3]
[347582109,1735924256522,-943.71,0.00021643,3]
[347582110,1735924256531,-500.0,0.00021643,3]
[347582111,1735924256542,-521.93,0.00021643,3]
[347582112,1735924256552,-617.04,0.00021643,3]
[347582113,1735924256562,-1215.82,0.00021643,3]
[347582114,1735924256573,-3168.56,0.00021643,3]
[347582115,1735924256583,-500.0,0.00021643,3]
[347582116,1735924256594,-231.48,0.00021643,3]
[347582117,1735924256605,-577.23,0.00021643,3]
[347582118,1735924256614,-1040.34,0.00021643,3]